bitfinex-derivatives/quotes_SOLF0:USTF0_20250307
["timestamp","ask_amount","ask_price","bid_price","bid_amount"]
[1741385091211,34.92,142.46,142.39,0.04611839]
[1741385091412,0.04473687,142.42,142.41,7.0239]
[1741385091720,7.0219,142.45,142.41,7.0239]
[1741385091927,0.05280346,142.43,142.4,0.05230628]
[1741385092920,0.05280346,142.43,142.4,7.07640628]
[1741385093528,0.05280346,142.43,142.41,7.0234]
[1741385093826,0.05280346,142.43,142.4,0.05230628]
[1741385094324,0.05280346,142.43,142.42,7.0234]
[1741385094519,3.46e-06,142.43,142.42,7.0234]
[1741385095120,3.46e-06,142.43,142.41,7.0236]
[1741385095315,3.46e-06,142.43,142.4,0.05230628]
[1741385096421,3.46e-06,142.43,142.42,7.0234]
[1741385097030,3.46e-06,142.43,142.42,50.76794006]
[1741385097225,34.88,142.51,142.42,47.26454006]
[1741385097523,7.7563,142.52,142.42,43.74454006]
[1741385097730,7.7563,142.52,142.45,43.74454006]
[1741385098129,7.0198,142.5,142.45,43.74454006]
[1741385098430,0.0479689,142.49,142.46,0.05217933]
[1741385098727,7.0205,142.48,142.46,0.05217933]
[1741385098922,0.0479689,142.49,142.46,0.05217933]
[1741385099232,34.9279689,142.49,142.46,0.05217933]
[1741385099730,7.0209,142.47,142.46,0.05217933]
[1741385100227,34.9279689,142.49,142.38,43.74454006]
[1741385100427,78.62454006,142.49,142.36,34.88]
[1741385100733,7.0247,142.4,142.36,7.026]
[1741385101025,34.88,142.42,142.33,34.88]
[1741385101229,7.0249,142.4,142.35,7.0266]
[1741385101425,0.05366738,142.39,142.36,0.05050414]
[1741385101930,0.05366738,142.39,142.36,7.07650414]
[1741385102125,34.88,142.38,142.36,0.05050414]
[1741385102328,34.88,142.38,142.27,43.74454006]
[1741385102633,34.88,142.38,142.3,43.74454006]
[1741385102830,193.0,142.44,142.33,43.74454006]
[1741385103025,34.88,142.43,142.36,43.74454006]
[1741385103427,0.05392168,142.41,142.39,43.74454006]
[1741385103633,0.05392168,142.41,142.39,50.76934006]
[1741385104021,0.05392168,142.41,142.38,0.0494786]
[1741385104022,7.0249,142.39,142.38,0.0494786]
[1741385104430,3.52,142.39,142.17,474.51027318]
[1741385104633,43.74454006,142.37,142.22,34.88]
[1741385104835,253.1423,142.36,142.21,43.90284006]
[1741385105229,7.0295,142.3,142.25,7.0315]
[1741385105426,0.04497556,142.3,142.27,0.05144062]
[1741385105732,7.0301,142.29,142.24,7.0321]
[1741385105933,0.04959823,142.3,142.27,0.04785457]
[1741385106339,0.04959823,142.3,142.18,29.00573312]
[1741385106541,43.74454006,142.31,142.18,29.00573312]
[1741385106837,43.74454006,142.26,142.18,29.00573312]
[1741385107035,43.74454006,142.23,142.18,4.85173312]
[1741385107341,43.74454006,142.23,142.17,77.25420392]
[1741385107530,0.04640775,142.22,142.19,0.04501461]
[1741385108139,34.88,142.28,142.2,43.74454006]
[1741385108930,34.88,142.28,142.24,7.0323]
[1741385109136,34.88,142.28,142.2,43.74454006]
[1741385109333,0.05292564,142.27,142.25,0.05383575]
[1741385109843,34.88,142.34,142.26,43.74454006]
[1741385110235,34.88,142.34,142.2,43.74454006]
[1741385110431,34.88,142.34,142.23,43.74454006]
[1741385110636,34.88,142.34,142.26,7.0311]
[1741385110940,34.88,142.34,142.26,43.74454006]
[1741385111242,0.05184687,142.31,142.3,7.0293]
[1741385111541,231.5862,142.37,142.27,34.88]
[1741385111742,0.04967431,142.32,142.29,0.05031337]
[1741385112641,0.04967431,142.32,142.29,43.79485343]
[1741385112939,0.04967431,142.32,142.31,7.0288]
[1741385113144,0.04967431,142.32,142.29,0.05031337]
[1741385113544,43.74454006,142.3,142.2,7.0342]
[1741385113746,43.74454006,142.27,142.15,7.4187]
[1741385113946,43.74454006,142.27,142.1,47.65924006]
[1741385113947,38.8701,142.26,142.1,47.65924006]
[1741385114247,43.74454006,142.24,142.11,3.7575]
[1741385114649,0.04776959,142.19,142.16,0.05275532]
[1741385114848,34.9,142.18,142.16,0.05275532]
[1741385116049,0.04776959,142.19,142.16,0.05275532]
[1741385118147,0.04776959,142.19,142.08,4.0218]
[1741385118343,196.95,142.2,142.03,254.68454006]
[1741385118540,196.95,142.2,142.11,7.0383]
[1741385118541,203.9843,142.2,142.11,7.0383]
[1741385119051,203.9843,142.2,142.06,43.74454006]
[1741385119052,196.95,142.2,142.06,43.74454006]
[1741385119447,0.05233975,142.17,142.14,0.04967436]
[1741385119646,43.74454006,142.15,142.04,7.042]
[1741385119852,43.74454006,142.12,141.99,3.876]
[1741385120047,34.9,142.11,141.99,3.876]
[1741385120247,34.9,142.11,142.0,47.45624006]
[1741385120446,34.9,142.11,142.01,34.9]
[1741385120647,34.9,142.11,142.09,7.0394]
[1741385120846,231.8733,142.14,142.03,43.74454006]
[1741385121044,0.04507898,142.11,142.09,0.05194167]
[1741385121858,0.04507898,142.11,142.1,7.0392]
[1741385122345,7.898e-05,142.11,142.1,7.0392]
[1741385123753,34.9,142.23,142.1,47.26454006]
[1741385123949,34.9,142.24,142.15,43.74454006]
[1741385124149,7.611,142.26,142.24,7.0321]
[1741385124350,7.611,142.26,142.16,3.8446]
[1741385124751,0.04929674,142.22,142.21,43.74454006]
[1741385125056,77.38329723,142.31,142.21,43.74454006]
[1741385125057,77.38329723,142.31,142.21,78.64454006]
[1741385125848,112.28329723,142.31,142.21,78.64454006]
[1741385126047,0.04979087,142.27,142.25,0.05293762]
[1741385126249,9.087e-05,142.27,142.25,0.05293762]
[1741385126449,9.087e-05,142.27,142.26,7.0313]
[1741385126657,53.1388881,142.31,142.26,34.9]
[1741385126859,53.1388881,142.31,142.26,3.9055]
[1741385127158,38.5978,142.37,142.3,7.0293]
[1741385127349,38.5978,142.37,142.26,3.9055]
[1741385127758,0.05362426,142.33,142.3,0.05112816]
[1741385128957,0.05362426,142.33,142.32,7.0283]
[1741385129361,0.05362426,142.33,142.3,7.08002816]
[1741385129553,0.05362426,142.33,142.3,0.05112816]
[1741385129955,0.05362426,142.33,142.32,7.0283]
[1741385130260,0.05362426,142.33,142.31,34.9]
[1741385130561,0.05362426,142.33,142.32,7.0283]
[1741385131158,0.05362426,142.33,142.31,34.9]
[1741385131465,0.05362426,142.33,142.3,0.05112816]
[1741385133555,0.05362426,142.33,142.31,7.0287]
[1741385133752,0.05362426,142.33,142.3,0.05112816]
[1741385133959,2.426e-05,142.33,142.31,34.88]
[1741385134157,2.426e-05,142.33,142.32,50.77284006]
[1741385134462,2.426e-05,142.33,142.32,7.0283]
[1741385135061,2.426e-05,142.33,142.3,0.05112816]
[1741385135664,2.426e-05,142.33,142.32,7.0283]
[1741385135865,2.426e-05,142.33,142.3,0.05112816]
[1741385136163,2.426e-05,142.33,142.31,7.0284]
[1741385136352,2.426e-05,142.33,142.3,0.05112816]
[1741385136861,2.426e-05,142.33,142.32,7.0283]
[1741385139365,2.426e-05,142.33,142.3,7.08022816]
[1741385139867,2.426e-05,142.33,142.3,0.05112816]
[1741385140669,2.426e-05,142.33,142.3,43.79566822]
[1741385141156,2.426e-05,142.33,142.3,0.05112816]
[1741385141760,2.426e-05,142.33,142.32,7.0283]
[1741385142971,193.0,142.41,142.31,43.74454006]
[1741385143264,3.7485,142.43,142.34,43.74454006]
[1741385143463,10.7717,142.43,142.39,7.0246]
[1741385143665,210.96,142.47,142.37,43.74454006]
[1741385143666,245.82,142.47,142.37,43.74454006]
[1741385143867,14.7971,142.49,142.46,7.0214]
[1741385144070,0.05164952,142.43,142.41,0.05288244]
[1741385144258,7.777,142.49,142.4,78.60454006]
[1741385144466,0.0453971,142.43,142.42,7.023]
[1741385144669,7.0218,142.46,142.42,7.023]
[1741385144868,0.05242993,142.44,142.41,0.05183943]
[1741385145677,7.07492993,142.44,142.41,0.05183943]
[1741385145870,34.91242993,142.44,142.41,0.05183943]
[1741385146261,7.0245,142.4,142.32,3.9485]
[1741385146460,34.86,142.44,142.32,3.9485]
[1741385146870,7.0247,142.4,142.32,3.9485]
[1741385147071,41.8847,142.4,142.32,3.9485]
[1741385147567,0.04876838,142.37,142.35,0.05072494]
[1741385148464,6.838e-05,142.37,142.36,7.0264]
[1741385151970,34.84,142.47,142.36,38.36]
[1741385152170,7.777,142.49,142.41,43.74454006]
[1741385152467,38.4898,142.51,142.41,43.74454006]
[1741385153062,38.4898,142.51,142.45,0.05148035]
[1741385153266,7.38e-06,142.47,142.45,0.05148035]
[1741385153474,34.84,142.53,142.5,7.0191]
[1741385153771,34.84,142.53,142.44,43.74454006]
[1741385153975,3.6471,142.58,142.47,43.74454006]
[1741385154171,34.84,142.57,142.5,43.74454006]
[1741385154672,0.05407486,142.55,142.52,0.04549614]
[1741385155266,0.05407486,142.55,142.53,7.0177]
[1741385155467,0.05407486,142.55,142.52,0.04549614]
[1741385155869,0.05407486,142.55,142.54,7.0175]
[1741385156068,0.05407486,142.55,142.52,0.04549614]
[1741385156371,0.05407486,142.55,142.53,43.74454006]
[1741385156566,0.05407486,142.55,142.52,0.04549614]
[1741385157469,0.05407486,142.55,142.53,7.018]
[1741385157669,0.05407486,142.55,142.52,0.04549614]
[1741385159671,76.8664352,142.55,142.52,0.04549614]
[1741385159970,76.8664352,142.55,142.54,7.0175]
[1741385160471,76.8664352,142.55,142.53,43.74454006]
[1741385160678,76.8664352,142.55,142.52,0.04549614]
[1741385161071,76.8664352,142.55,142.52,7.06369614]
[1741385161373,76.8664352,142.55,142.52,0.04549614]
[1741385162570,80.5940352,142.55,142.52,0.04549614]
[1741385162766,7.018,142.53,142.52,0.04549614]
[1741385162977,80.5940352,142.55,142.44,43.74454006]
[1741385163172,3.7307,142.54,142.41,43.74454006]
[1741385163971,7.0199,142.5,142.41,43.74454006]
[1741385164176,0.05042466,142.49,142.46,0.04681556]
[1741385164974,0.05042466,142.49,142.48,7.0204]
[1741385165367,2.466e-05,142.49,142.48,7.0204]
[1741385166071,2.466e-05,142.49,142.47,43.74454006]
[1741385166271,2.466e-05,142.49,142.46,0.04681556]
[1741385167677,2.466e-05,142.49,142.47,7.0208]
[1741385169078,2.466e-05,142.49,142.46,0.04681556]
[1741385169481,7.0209,142.47,142.46,0.04681556]
[1741385169773,34.8,142.48,142.42,7.0232]
[1741385169980,7.0217,142.46,142.43,7.0227]
[1741385170173,34.8,142.48,142.41,43.74454006]
[1741385170768,0.04466211,142.46,142.43,0.05377437]
[1741385171076,6.211e-05,142.46,142.43,0.05377437]
[1741385171278,6.211e-05,142.46,142.45,7.0219]
[1741385172375,6.211e-05,142.46,142.44,7.0221]
[1741385172580,6.211e-05,142.46,142.43,0.05377437]
[1741385172975,7.0224,142.44,142.43,0.05377437]
[1741385173179,3.64806211,142.46,142.37,43.74454006]
[1741385173383,3.648,142.46,142.37,43.74454006]
[1741385173984,7.0237,142.42,142.37,43.74454006]
[1741385174185,34.8,142.43,142.34,47.43894006]
[1741385174487,0.04834176,142.41,142.38,0.04823583]
[1741385174791,0.04834176,142.41,142.38,7.07353583]
[1741385174983,0.04834176,142.41,142.38,0.04823583]
[1741385175291,7.07264176,142.41,142.38,0.04823583]
[1741385175484,0.04834176,142.41,142.31,43.74454006]
[1741385175686,43.74454006,142.42,142.29,38.40618016]
[1741385175990,34.8,142.43,142.29,38.40618016]
[1741385175991,34.8,142.43,142.31,43.74454006]
[1741385176184,34.8,142.43,142.34,43.74454006]
[1741385176587,0.04772158,142.4,142.37,0.05385056]
[1741385176884,0.04772158,142.4,142.38,7.0251]
[1741385177087,0.04772158,142.4,142.37,0.05385056]
[1741385177484,0.04772158,142.4,142.37,7.07955056]
[1741385177685,0.04772158,142.4,142.37,0.05385056]
[1741385178697,0.04772158,142.4,142.39,7.0249]
[1741385179491,66.22118552,142.5,142.49,7.02]
[1741385179789,66.22118552,142.5,142.49,41.82]
[1741385179983,44.79648552,142.5,142.49,41.82]
[1741385180184,33.55588552,142.5,142.49,41.82]
[1741385181390,115.26394638,142.51,142.48,0.05401584]
[1741385181391,0.04540587,142.51,142.48,0.05401584]
[1741385181587,3.97130587,142.51,142.42,43.74454006]
[1741385181893,3.9259,142.51,142.42,43.74454006]
[1741385182090,3.9259,142.51,142.45,43.74454006]
[1741385182288,34.8,142.56,142.48,43.74454006]
[1741385182498,3.7844,142.58,142.57,7.016]
[1741385182800,0.05004289,142.59,142.56,0.04965911]
[1741385182986,0.05004289,142.59,142.58,7.0155]
[1741385183291,0.05396582,142.6,142.58,7.0155]
[1741385183693,0.05396582,142.6,142.59,7.015]
[1741385183886,0.05396582,142.6,142.58,0.05084851]
[1741385187392,0.05396582,142.6,142.49,43.74454006]
[1741385187592,34.76,142.61,142.49,43.74454006]
[1741385188197,34.76,142.61,142.48,34.76]
[1741385188198,34.76,142.61,142.54,7.0172]
[1741385188396,34.76,142.61,142.52,43.74454006]
[1741385188697,0.05160207,142.59,142.56,0.0532971]
[1741385190397,0.05160207,142.59,142.57,7.016]
[1741385190789,0.05160207,142.59,142.56,34.8132971]
[1741385191388,0.05160207,142.59,142.56,0.0532971]
[1741385191986,7.016,142.57,142.5,43.74454006]
[1741385192188,34.76,142.57,142.5,43.74454006]
[1741385192594,34.76,142.57,142.51,7.0189]
[1741385193295,0.04642227,142.55,142.53,0.04758596]
[1741385195798,0.04642227,142.55,142.44,43.74454006]
[1741385196092,201.4876255,142.56,142.44,44.96572124]
[1741385196298,201.4876255,142.56,142.4,34.74]
[1741385196299,7.0205,142.48,142.42,7.0232]
[1741385196500,34.74,142.52,142.44,43.74454006]
[1741385196692,34.74,142.52,142.47,43.74454006]
[1741385196892,34.74,142.52,142.47,43.79352862]
[1741385197301,0.04889591,142.51,142.47,0.04898856]
[1741385197799,0.04889591,142.51,142.47,43.79352862]
[1741385199400,0.04889591,142.51,142.47,0.04898856]
[1741385199605,7.0204,142.48,142.47,0.04898856]
[1741385200097,0.04889591,142.51,142.47,0.04898856]
[1741385200398,34.78889591,142.51,142.47,0.04898856]
[1741385200596,41.80799591,142.51,142.47,0.04898856]
[1741385200799,34.78889591,142.51,142.47,0.04898856]
[1741385202098,7.0198,142.5,142.47,0.04898856]
[1741385202801,7.0204,142.48,142.47,0.04898856]
[1741385203700,7.0234,142.43,142.41,43.74454006]
[1741385203901,34.74,142.47,142.41,43.74454006]
[1741385204106,34.74,142.46,142.36,43.74454006]
[1741385204404,7.0244,142.4,142.36,43.74454006]
[1741385204590,38.6327,142.46,142.36,43.74454006]
[1741385204790,7.0254,142.38,142.36,43.74454006]
[1741385204993,34.7902098,142.42,142.36,43.74454006]
[1741385205198,34.74,142.42,142.36,43.79358137]
[1741385205396,7.0257,142.38,142.36,43.79358137]
[1741385205903,7.0255,142.38,142.36,0.04904131]
[1741385206101,0.04557336,142.4,142.36,0.04904131]
[1741385206497,0.04557336,142.4,142.36,43.79358137]
[1741385207003,7.0252,142.39,142.36,0.04904131]
[1741385208094,0.04557336,142.4,142.39,7.0249]
[1741385209200,0.04557336,142.4,142.36,0.04904131]
[1741385210903,0.04557336,142.4,142.38,7.0253]
[1741385211306,0.04557336,142.4,142.36,0.04904131]
[1741385211702,0.04557336,142.4,142.37,43.74454006]
[1741385212099,0.04557336,142.4,142.39,7.0249]
[1741385212505,7.336e-05,142.4,142.39,7.0249]
[1741385212906,34.74,142.48,142.39,38.26]
[1741385213207,3.8983,142.51,142.42,43.74454006]
[1741385213405,34.74,142.5,142.44,7.0222]
[1741385213598,7.0201,142.49,142.42,43.74454006]
[1741385214000,0.05145245,142.47,142.44,0.04555206]
[1741385214504,0.05145245,142.47,142.46,7.0214]
[1741385214700,5.245e-05,142.47,142.46,7.0214]
[1741385216711,5.245e-05,142.47,142.45,43.74454006]
[1741385216901,5.245e-05,142.47,142.44,0.04555206]
[1741385217401,34.74005245,142.47,142.44,0.04555206]
[1741385218003,7.0219,142.45,142.44,0.04555206]
[1741385218597,7.0233,142.43,142.37,7.0258]
[1741385219102,34.74,142.47,142.36,43.74454006]
[1741385219601,0.04666945,142.43,142.4,0.04930381]
[1741385221995,7.06976945,142.43,142.4,0.04930381]
[1741385222206,0.04666945,142.43,142.4,0.04930381]
[1741385223204,7.0235,142.42,142.4,0.04930381]
[1741385224211,7.0234,142.42,142.4,0.04930381]
[1741385224411,34.76666945,142.43,142.4,0.04930381]
[1741385224910,7.0239,142.41,142.4,0.04930381]
[1741385225612,7.0258,142.38,142.32,54.90804006]
[1741385225811,34.72,142.43,142.32,54.90804006]
[1741385226013,34.72,142.43,142.35,7.0268]
[1741385226202,7.0258,142.38,142.32,54.90804006]
[1741385226606,0.05370446,142.36,142.34,7.027]
[1741385226800,0.05370446,142.36,142.34,7.07808316]
[1741385227110,0.05370446,142.36,142.34,0.05108316]
[1741385227809,0.05370446,142.36,142.35,7.0269]
[1741385228308,0.05370446,142.36,142.34,0.05108316]
[1741385228811,7.0269,142.35,142.34,0.05108316]
[1741385229202,0.05370446,142.36,142.34,0.05108316]
[1741385229512,0.05370446,142.36,142.35,43.74454006]
[1741385229706,0.05370446,142.36,142.34,0.05108316]
[1741385230605,7.0269,142.35,142.34,0.05108316]
[1741385230811,0.05370446,142.36,142.34,0.05108316]
[1741385231916,7.0269,142.35,142.34,0.05108316]
[1741385233210,7.08030446,142.36,142.34,0.05108316]
[1741385233607,0.05370446,142.36,142.34,0.05108316]
[1741385235417,7.0269,142.35,142.34,0.05108316]
[1741385237015,0.05370446,142.36,142.29,26.88563767]
[1741385237220,7.028,142.33,142.29,26.88563767]
[1741385237421,34.72,142.38,142.32,7.0283]
[1741385237620,7.0276,142.34,142.29,26.88563767]
[1741385238016,7.0276,142.34,142.31,7.0285]
[1741385238216,0.04596902,142.33,142.31,7.0285]
[1741385239418,0.04596902,142.33,142.32,7.0283]
[1741385239619,0.04596902,142.33,142.3,0.05041943]
[1741385240119,0.04596902,142.33,142.24,211.98289771]
[1741385240120,0.04596902,142.33,142.21,26.88563767]
[1741385240318,7.8657,142.33,142.21,26.88563767]
[1741385240622,7.0306,142.28,142.21,26.88563767]
[1741385241324,0.04837356,142.26,142.24,0.04939093]
[1741385242026,0.04837356,142.26,142.25,7.0318]
[1741385242525,0.04837356,142.26,142.24,0.04939093]
[1741385245124,34.7,142.25,142.16,26.88563767]
[1741385245328,42.0756,142.25,142.16,26.88563767]
[1741385245734,7.0327,142.24,142.2,7.034]
[1741385246324,0.05091155,142.23,142.21,0.04744041]
[1741385246931,7.0333,142.22,142.21,0.04744041]
[1741385247232,0.05091155,142.23,142.21,0.04744041]
[1741385248232,0.05091155,142.23,142.22,7.0333]
[1741385248525,0.05091155,142.23,142.21,0.04744041]
[1741385248935,7.0333,142.22,142.21,0.04744041]
[1741385249629,3.52,142.22,142.21,0.04744041]
[1741385249827,0.05091155,142.23,142.13,28.10956761]
[1741385250027,7.0345,142.2,142.17,7.0357]
[1741385250231,7.0345,142.2,142.13,26.88563767]
[1741385250232,34.7,142.2,142.13,26.88563767]
[1741385250636,34.7,142.2,142.19,7.0348]
[1741385251733,0.04850429,142.21,142.2,7.0343]
[1741385251933,0.04850429,142.21,142.16,26.88563767]
[1741385252933,0.04850429,142.21,142.2,7.0343]
[1741385253331,3.7069,142.29,142.19,26.88563767]
[1741385253332,7.0306,142.28,142.19,26.88563767]
[1741385253533,34.7,142.28,142.19,26.88563767]
[1741385254241,41.7306,142.28,142.25,7.0315]
[1741385254742,41.77505381,142.28,142.25,7.08222964]
[1741385255141,7.0308,142.27,142.25,0.05072964]
[1741385255343,34.74445381,142.28,142.25,0.05072964]
[1741385255739,65.15009148,142.28,142.17,34.69833767]
[1741385255935,193.0,142.27,142.17,34.69833767]
[1741385256137,193.0,142.27,142.19,7.0345]
[1741385256335,193.0,142.27,142.17,34.69833767]
[1741385256932,0.04484837,142.23,142.17,34.69833767]
[1741385257338,0.04484837,142.23,142.2,7.0339]
[1741385257736,34.74484837,142.23,142.17,34.69833767]
[1741385258435,7.0334,142.22,142.18,7.0349]
[1741385258638,7.0334,142.22,142.17,34.69833767]
[1741385258839,34.74484837,142.23,142.17,34.69833767]
[1741385259033,41.77794837,142.23,142.19,7.0345]
[1741385259433,41.77794837,142.23,142.2,7.0343]
[1741385260232,0.04484837,142.23,142.2,7.0343]
[1741385260437,0.04484837,142.23,142.22,7.0333]
[1741385261037,3.7069,142.29,142.27,7.0308]
[1741385261335,34.68,142.32,142.27,26.88563767]
[1741385261536,91.95461802,142.36,142.31,7.0284]
[1741385261839,34.68,142.34,142.27,26.88563767]
[1741385262033,41.7074,142.34,142.28,3.7109]
[1741385262233,0.05264329,142.32,142.3,7.0292]
[1741385262647,0.05264329,142.32,142.29,0.04556373]
[1741385263848,7.0288,142.31,142.29,0.04556373]
[1741385264138,0.05264329,142.32,142.29,0.04556373]
[1741385264335,7.0293,142.3,142.29,0.04556373]
[1741385264942,0.05264329,142.32,142.29,7.07496373]
[1741385265246,0.05264329,142.32,142.29,0.04556373]
[1741385265434,7.0292,142.31,142.29,0.04556373]
[1741385266139,7.0293,142.3,142.29,0.04556373]
[1741385266539,7.0289,142.31,142.29,0.04556373]
[1741385267347,0.05264329,142.32,142.3,7.0292]
[1741385267550,0.05264329,142.32,142.29,0.04556373]
[1741385268442,0.05264329,142.32,142.3,7.029]
[1741385269135,0.05264329,142.32,142.29,7.07506373]
[1741385269136,7.08104329,142.32,142.29,7.07506373]
[1741385269339,0.05264329,142.32,142.29,0.04556373]
[1741385270744,0.05264329,142.32,142.31,7.0288]
[1741385271143,0.05264329,142.32,142.29,0.04556373]
[1741385271341,34.64,142.31,142.21,26.88563767]
[1741385271837,7.0306,142.28,142.24,7.0319]
[1741385272037,7.0306,142.28,142.21,26.88563767]
[1741385272438,7.0309,142.27,142.23,7.0323]
[1741385272650,0.0484494,142.26,142.21,26.88563767]
[1741385273042,0.0484494,142.26,142.24,7.032]
[1741385274944,0.0484494,142.26,142.21,26.88563767]
[1741385275151,0.0484494,142.26,142.25,7.0318]
[1741385278152,0.0484494,142.26,142.21,26.88563767]
[1741385279442,0.0484494,142.26,142.24,7.0318]
[1741385279647,0.0484494,142.26,142.21,26.88563767]
[1741385280546,0.0484494,142.26,142.25,7.0318]
[1741385283252,0.0484494,142.26,142.21,26.88563767]
[1741385283451,34.62,142.25,142.19,3.7109]
[1741385283654,34.62,142.25,142.14,30.87183767]
[1741385283852,7.0338,142.21,142.14,30.87183767]
[1741385284047,0.05077692,142.21,142.14,30.87183767]
[1741385284350,0.05077692,142.21,142.19,7.0345]
[1741385284553,0.05077692,142.21,142.14,30.87183767]
[1741385285251,0.05077692,142.21,142.17,26.88563767]
[1741385285452,7.692e-05,142.21,142.2,33.91993767]
[1741385286050,7.692e-05,142.21,142.17,61.48563767]
[1741385286558,7.692e-05,142.21,142.18,0.04838449]
[1741385286751,249.3314,142.28,142.2,26.88563767]
[1741385287059,7.0331,142.23,142.17,61.48563767]
[1741385287258,249.3314,142.28,142.19,7.0344]
[1741385287562,7.0335,142.22,142.19,7.0344]
[1741385287859,7.08218677,142.22,142.19,7.0864936]
[1741385288560,0.04868677,142.22,142.19,0.0520936]
[1741385289666,8.677e-05,142.22,142.21,7.0338]
[1741385290860,8.677e-05,142.22,142.2,7.0341]
[1741385291066,8.677e-05,142.22,142.19,0.0520936]
[1741385291655,8.677e-05,142.22,142.21,7.0338]
[1741385292168,8.677e-05,142.22,142.2,7.034]
[1741385292663,8.677e-05,142.22,142.19,0.0520936]
[1741385292966,8.677e-05,142.22,142.21,7.0338]
[1741385295364,8.677e-05,142.22,142.2,16.82959818]
[1741385295365,45.3619,142.28,142.26,7.0312]
[1741385295568,38.3314,142.28,142.26,7.0312]
[1741385295766,3.7669,142.29,142.23,16.82959818]
[1741385295964,7.0301,142.29,142.26,7.0311]
[1741385296164,38.378,142.32,142.23,16.82959818]
[1741385296469,38.378,142.32,142.24,7.0322]
[1741385296667,0.04625197,142.28,142.25,0.04909561]
[1741385297266,7.031,142.27,142.25,7.08059561]
[1741385297468,7.031,142.27,142.25,0.04909561]
[1741385298767,0.04625197,142.28,142.27,7.0308]
[1741385298966,0.04625197,142.28,142.27,23.86039818]
[1741385299574,0.04625197,142.28,142.27,7.0308]
[1741385300871,0.04625197,142.28,142.25,0.04909561]
[1741385301573,7.07665197,142.28,142.25,7.08059561]
[1741385302178,0.04625197,142.28,142.25,0.04909561]
[1741385302874,7.0313,142.26,142.25,0.04909561]
[1741385303271,16.82959818,142.26,142.17,38.5767]
[1741385303474,34.56,142.27,142.17,38.5767]
[1741385303674,34.56,142.27,142.18,16.82959818]
[1741385303875,7.0325,142.24,142.21,7.0335]
[1741385304272,7.0333,142.22,142.19,7.0346]
[1741385304475,0.05033234,142.24,142.21,0.04676768]
[1741385304675,34.56,142.27,142.17,38.5767]
[1741385304876,7.0332,142.23,142.21,0.04681273]
[1741385305183,0.05271708,142.24,142.21,0.04681273]
[1741385305378,7.0333,142.22,142.21,0.04681273]
[1741385306378,16.82959818,142.22,142.14,7.0371]
[1741385306584,16.82959818,142.2,142.08,132.9699233]
[1741385306880,16.82959818,142.18,142.08,35.84473512]
[1741385307078,16.82959818,142.16,142.08,28.80463512]
[1741385307276,16.82959818,142.14,142.08,28.80463512]
[1741385307483,7.0392,142.1,142.08,28.80463512]
[1741385307686,16.82959818,142.12,142.07,98.93575796]
[1741385307978,16.82959818,142.12,142.04,39.08241938]
[1741385307979,3.79345997,142.11,142.04,39.08241938]
[1741385308386,16.82959818,142.1,142.04,39.08241938]
[1741385308578,34.54,142.09,142.04,39.08241938]
[1741385308879,0.04494135,142.08,142.04,39.08241938]
[1741385310583,7.0409,142.07,142.04,39.08241938]
[1741385311089,0.04494135,142.08,142.04,39.08241938]
[1741385312188,7.0411,142.07,142.01,7.0433]
[1741385313391,193.0,142.06,141.91,28.22593296]
[1741385313584,27.0003435,142.04,141.92,3.7922]
[1741385313794,0.05150427,142.0,141.92,3.7922]
[1741385314095,0.05150427,142.0,141.93,34.54]
[1741385314299,0.05150427,142.0,141.98,7.0451]
[1741385314703,0.05150427,142.0,141.93,34.54]
[1741385314910,34.54,142.07,141.97,27.0003435]
[1741385315209,34.54,142.07,142.0,27.0003435]
[1741385315402,34.54,142.07,142.04,7.0419]
[1741385315909,34.54,142.07,142.03,7.0425]
[1741385316111,34.58668108,142.07,142.04,0.04770047]
[1741385316506,7.0415,142.06,142.04,0.04770047]
[1741385317006,34.58668108,142.07,142.04,0.04770047]
[1741385317402,0.04668108,142.07,142.04,0.04770047]
[1741385317601,0.04668108,142.07,142.05,7.0414]
[1741385318318,0.04668108,142.07,142.04,0.04770047]
[1741385318810,7.08758108,142.07,142.04,0.04770047]
[1741385319202,0.04668108,142.07,142.04,0.04770047]
[1741385319403,0.04668108,142.07,142.05,7.0417]
[1741385319800,0.04668108,142.07,142.04,7.08970047]
[1741385320006,0.04668108,142.07,142.04,0.04770047]
[1741385321113,0.04668108,142.07,142.04,7.08970047]
[1741385321808,0.04668108,142.07,142.06,7.0412]
[1741385322003,0.04668108,142.07,142.04,0.04770047]
[1741385322812,0.04668108,142.07,142.06,7.0412]